[Event "7° Rencontres Internationales des Echecs Francophones"]
[Site "PARIS, France"]
[Date "2019.08.09"]
[Round "6.9"]
[White "Dardha, Daniel"]
[Black "Ralison, Milanto Harifidy"]
[Result "1/2-1/2"]
[TimeControl "90'+ 30' + 30seconds/move"]
[WhiteTitle "FM"]
[BlackTitle "FM"]
[WhiteFideId "240990"]
[BlackFideId "13100351"]
[WhiteElo "2424"]
[BlackElo "2277"]

1. c4 {[%clk 01:28:23]} {[%emt 00:02:36]} Nf6 {[%clk 01:30:47]} {[%emt
00:00:13]} 2. Nc3 {[%clk 01:28:46]} {[%emt 00:00:07]} d5 {[%clk 01:31:11]}
{[%emt 00:00:06]} 3. cxd5 {[%clk 01:29:11]} {[%emt 00:00:06]} Nxd5 {[%clk
01:31:36]} {[%emt 00:00:05]} 4. Nf3 {[%clk 01:29:28]} {[%emt 00:00:12]} g6
{[%clk 01:31:37]} {[%emt 00:00:29]} 5. e4 {[%clk 01:29:53]} {[%emt 00:00:06]}
Nb6 {[%clk 01:29:47]} {[%emt 00:02:20]} 6. d4 {[%clk 01:28:32]} {[%emt
00:01:51]} Bg7 {[%clk 01:30:07]} {[%emt 00:00:10]} 7. h3 {[%clk 01:27:04]}
{[%emt 00:01:58]} O-O {[%clk 01:30:16]} {[%emt 00:00:20]} 8. Be3 {[%clk
01:26:34]} {[%emt 00:01:00]} Nc6 {[%clk 01:29:53]} {[%emt 00:00:54]} 9. Bb5
{[%clk 01:26:42]} {[%emt 00:00:22]} Na5 {[%clk 01:26:25]} {[%emt 00:03:58]} 10.
Be2 {[%clk 01:20:46]} {[%emt 00:06:26]} Nac4 {[%clk 01:23:34]} {[%emt
00:03:21]} 11. Bc1 {[%clk 01:20:37]} {[%emt 00:00:39]} e5 {[%clk 01:22:15]}
{[%emt 00:01:49]} 12. d5 {[%clk 01:20:54]} {[%emt 00:00:14]} Nd6 {[%clk
01:21:11]} {[%emt 00:01:33]} 13. Bg5 {[%clk 01:17:34]} {[%emt 00:03:50]} f6
{[%clk 01:21:11]} {[%emt 00:00:30]} 14. Bh4 {[%clk 01:18:01]} {[%emt 00:00:04]}
Qe8 {[%clk 01:20:19]} {[%emt 00:01:22]} 15. O-O {[%clk 01:17:02]} {[%emt
00:01:29]} f5 {[%clk 01:15:26]} {[%emt 00:05:23]} 16. Nd2 {[%clk 01:09:23]}
{[%emt 00:08:08]} fxe4 {[%clk 01:13:18]} {[%emt 00:02:38]} 17. Bg3 {[%clk
01:09:26]} {[%emt 00:00:27]} Bf5 {[%clk 01:11:39]} {[%emt 00:02:09]} 18. Re1
{[%clk 01:06:01]} {[%emt 00:03:56]} Qf7 {[%clk 01:02:42]} {[%emt 00:09:26]} 19.
Qb3 {[%clk 01:02:29]} {[%emt 00:04:02]} a5 {[%clk 01:02:13]} {[%emt 00:01:00]}
20. a4 {[%clk 00:58:45]} {[%emt 00:04:13]} Nd7 {[%clk 01:01:25]} {[%emt
00:01:18]} 21. Nc4 {[%clk 00:50:38]} {[%emt 00:08:37]} Nc5 {[%clk 01:00:39]}
{[%emt 00:01:15]} 22. Qa3 {[%clk 00:49:59]} {[%emt 00:01:10]} b6 {[%clk
00:59:02]} {[%emt 00:02:07]} 23. Nxe5 {[%clk 00:47:32]} {[%emt 00:02:57]} Qe7
{[%clk 00:50:43]} {[%emt 00:08:49]} 24. Nc4 {[%clk 00:42:18]} {[%emt 00:05:45]}
h5 {[%clk 00:43:27]} {[%emt 00:07:46]} 25. Nb5 {[%clk 00:37:02]} {[%emt
00:05:46]} Nxb5 {[%clk 00:40:19]} {[%emt 00:03:38]} 26. axb5 {[%clk 00:37:26]}
{[%emt 00:00:06]} h4 {[%clk 00:38:28]} {[%emt 00:02:20]} 27. Bh2 {[%clk
00:33:19]} {[%emt 00:04:38]} Bd4 {[%clk 00:37:25]} {[%emt 00:01:33]} 28. Rf1
{[%clk 00:29:08]} {[%emt 00:04:41]} Qg5 {[%clk 00:29:42]} {[%emt 00:08:13]} 29.
Rae1 {[%clk 00:13:11]} {[%emt 00:16:27]} Rae8 {[%clk 00:23:49]} {[%emt
00:06:23]} 30. Kh1 {[%clk 00:10:20]} {[%emt 00:03:20]} Nd3 {[%clk 00:22:47]}
{[%emt 00:01:33]} 31. Bxd3 {[%clk 00:10:44]} {[%emt 00:00:06]} exd3 {[%clk
00:22:58]} {[%emt 00:00:19]} 32. Ne3 {[%clk 00:09:09]} {[%emt 00:02:05]} d2
{[%clk 00:05:27]} {[%emt 00:18:01]} 33. Re2 {[%clk 00:08:01]} {[%emt 00:01:39]}
Bxh3 {[%clk 00:04:18]} {[%emt 00:01:38]} 34. gxh3 {[%clk 00:06:24]} {[%emt
00:02:07]} Bxe3 {[%clk 00:04:07]} {[%emt 00:00:41]} 35. Qd3 {[%clk 00:06:33]}
{[%emt 00:00:21]} Qh5 {[%clk 00:01:41]} {[%emt 00:02:56]} 36. Rg1 {[%clk
00:04:05]} {[%emt 00:02:58]} Qf3+ {[%clk 00:02:06]} {[%emt 00:00:05]} 37. Rg2
{[%clk 00:04:34]} {[%emt 00:00:01]} Rf5 {[%clk 00:02:21]} {[%emt 00:00:14]} 38.
fxe3 {[%clk 00:03:49]} {[%emt 00:01:15]} Rxe3 {[%clk 00:01:00]} {[%emt
00:01:51]} 39. Qxd2 {[%clk 00:04:18]} {[%emt 00:00:01]} Qf1+ {[%clk 00:01:13]}
{[%emt 00:00:17]} 40. Bg1 {[%clk 00:03:43]} {[%emt 00:01:05]} Rxh3+ {[%clk
00:01:34]} {[%emt 00:00:09]} 41. Rh2 {[%clk 00:04:10]} {[%emt 00:00:03]} Rg3
{[%clk 00:30:27]} {[%emt 00:02:07]} 42. Reg2 {[%clk 00:31:14]} {[%emt
00:04:27]} Rfg5 {[%clk 00:29:03]} {[%emt 00:01:53]} 43. Rxg3 {[%clk 00:23:38]}
{[%emt 00:08:06]} Rxg3 {[%clk 00:29:20]} {[%emt 00:00:13]} 44. Qf2 {[%clk
00:23:58]} {[%emt 00:00:10]} Rxg1+ {[%clk 00:29:24]} {[%emt 00:00:26]} 45. Qxg1
{[%clk 00:24:26]} {[%emt 00:00:02]} 1/2-1/2

[Event "7° Rencontres Internationales des Echecs Francophones"]
[Site "PARIS, France"]
[Date "2019.08.09"]
[Round "6.6"]
[White "Eden, James"]
[Black "David, Alberto"]
[Result "1/2-1/2"]
[TimeControl "90'+ 30' + 30seconds/move"]
[WhiteTitle "IM"]
[BlackTitle "GM"]
[WhiteFideId "666491"]
[BlackFideId "4000013"]
[WhiteElo "2338"]
[BlackElo "2534"]

1. e4 {[%clk 01:29:11]} {[%emt 00:01:47]} c6 {[%clk 01:29:45]} {[%emt
00:01:16]} 2. d4 {[%clk 01:28:46]} {[%emt 00:00:55]} d5 {[%clk 01:30:09]}
{[%emt 00:00:07]} 3. Nc3 {[%clk 01:28:56]} {[%emt 00:00:20]} g6 {[%clk
01:28:36]} {[%emt 00:02:02]} 4. Be3 {[%clk 01:23:34]} {[%emt 00:05:51]} Bg7
{[%clk 01:10:42]} {[%emt 00:18:25]} 5. Qd2 {[%clk 01:21:38]} {[%emt 00:02:26]}
dxe4 {[%clk 01:07:48]} {[%emt 00:03:25]} 6. Nxe4 {[%clk 01:15:50]} {[%emt
00:06:18]} Nd7 {[%clk 01:08:12]} {[%emt 00:00:05]} 7. O-O-O {[%clk 01:08:11]}
{[%emt 00:08:09]} Ngf6 {[%clk 01:05:31]} {[%emt 00:03:11]} 8. Nxf6+ {[%clk
01:06:49]} {[%emt 00:01:52]} Nxf6 {[%clk 01:05:56]} {[%emt 00:00:05]} 9. f3
{[%clk 01:06:33]} {[%emt 00:00:46]} Be6 {[%clk 01:01:25]} {[%emt 00:05:01]} 10.
Kb1 {[%clk 01:03:46]} {[%emt 00:03:17]} Nd5 {[%clk 00:58:46]} {[%emt 00:03:09]}
11. Bh6 {[%clk 00:57:53]} {[%emt 00:06:22]} Bxh6 {[%clk 00:57:56]} {[%emt
00:01:20]} 12. Qxh6 {[%clk 00:57:51]} {[%emt 00:00:32]} Qb6 {[%clk 00:58:09]}
{[%emt 00:00:18]} 13. Qd2 {[%clk 00:55:40]} {[%emt 00:02:40]} O-O-O {[%clk
00:57:44]} {[%emt 00:00:55]} 14. Bc4 {[%clk 00:55:09]} {[%emt 00:01:00]} Nc7
{[%clk 00:44:07]} {[%emt 00:14:08]} 15. Bxe6+ {[%clk 00:52:53]} {[%emt
00:02:46]} Nxe6 {[%clk 00:44:28]} {[%emt 00:00:09]} 16. Ne2 {[%clk 00:52:55]}
{[%emt 00:00:28]} Nxd4 {[%clk 00:40:08]} {[%emt 00:04:50]} 17. Nxd4 {[%clk
00:52:42]} {[%emt 00:00:43]} e5 {[%clk 00:40:31]} {[%emt 00:00:07]} 18. Qg5
{[%clk 00:47:14]} {[%emt 00:05:58]} exd4 {[%clk 00:38:00]} {[%emt 00:03:02]} 19.
Qf6 {[%clk 00:46:59]} {[%emt 00:00:44]} Rhf8 {[%clk 00:35:10]} {[%emt
00:03:21]} 20. Rhe1 {[%clk 00:45:46]} {[%emt 00:01:42]} c5 {[%clk 00:30:37]}
{[%emt 00:05:03]} 21. Qg7 {[%clk 00:44:21]} {[%emt 00:01:54]} Qc7 {[%clk
00:30:36]} {[%emt 00:00:32]} 22. Qxh7 {[%clk 00:36:25]} {[%emt 00:08:25]} Rh8
{[%clk 00:29:48]} {[%emt 00:01:19]} 23. Qg7 {[%clk 00:36:48]} {[%emt 00:00:07]}
Rxh2 {[%clk 00:30:12]} {[%emt 00:00:06]} 24. Re2 {[%clk 00:36:17]} {[%emt
00:01:01]} Qd7 {[%clk 00:18:20]} {[%emt 00:12:23]} 25. Qf6 {[%clk 00:33:20]}
{[%emt 00:03:25]} Rh5 {[%clk 00:05:04]} {[%emt 00:13:47]} 26. g4 {[%clk
00:31:05]} {[%emt 00:02:45]} Rd5 {[%clk 00:02:13]} {[%emt 00:03:21]} 27. Re7
{[%clk 00:30:01]} {[%emt 00:01:33]} Rd6 {[%clk 00:02:03]} {[%emt 00:00:41]} 28.
Qxf7 {[%clk 00:29:26]} {[%emt 00:01:05]} Qc6 {[%clk 00:02:30]} {[%emt
00:00:03]} 29. b3 {[%clk 00:27:03]} {[%emt 00:02:53]} Rf6 {[%clk 00:01:34]}
{[%emt 00:01:26]} 30. Rc7+ {[%clk 00:27:06]} {[%emt 00:00:26]} Qxc7 {[%clk
00:02:01]} {[%emt 00:00:04]} 31. Qxf6 {[%clk 00:27:29]} {[%emt 00:00:07]} Qd6
{[%clk 00:02:29]} {[%emt 00:00:02]} 32. Qxd6 {[%clk 00:25:44]} {[%emt
00:02:15]} Rxd6 {[%clk 00:02:55]} {[%emt 00:00:04]} 33. c3 {[%clk 00:25:44]}
{[%emt 00:00:30]} Rf6 {[%clk 00:01:57]} {[%emt 00:01:28]} 34. cxd4 {[%clk
00:25:50]} {[%emt 00:00:23]} Rxf3 {[%clk 00:01:16]} {[%emt 00:01:11]} 35. dxc5
{[%clk 00:26:11]} {[%emt 00:00:10]} Rf4 {[%clk 00:01:32]} {[%emt 00:00:15]} 36.
Rg1 {[%clk 00:25:11]} {[%emt 00:01:31]} Kc7 {[%clk 00:01:35]} {[%emt 00:00:25]}
37. a3 {[%clk 00:24:01]} {[%emt 00:01:40]} g5 {[%clk 00:01:19]} {[%emt
00:00:46]} 38. Rg3 {[%clk 00:23:04]} {[%emt 00:01:27]} Kc6 {[%clk 00:01:29]}
{[%emt 00:00:20]} 39. b4 {[%clk 00:22:56]} {[%emt 00:00:38]} a5 {[%clk
00:00:59]} {[%emt 00:01:00]} 40. bxa5 {[%clk 00:22:52]} {[%emt 00:00:34]} Kxc5
{[%clk 00:01:12]} {[%emt 00:00:17]} 41. Rb3 {[%clk 00:21:58]} {[%emt 00:01:24]}
Kc6 {[%clk 00:01:25]} {[%emt 00:00:17]} 42. Rb6+ {[%clk 00:21:28]} {[%emt
00:01:00]} Kc7 {[%clk 00:01:51]} {[%emt 00:00:04]} 43. Rb4 {[%clk 00:21:52]}
{[%emt 00:00:06]} Rf1+ {[%clk 00:28:30]} {[%emt 00:04:21]} 44. Kc2 {[%clk
00:48:52]} {[%emt 00:04:30]} Rg1 {[%clk 00:28:55]} {[%emt 00:00:05]} 45. Kd2
{[%clk 00:46:59]} {[%emt 00:02:23]} Rg3 {[%clk 00:21:55]} {[%emt 00:07:30]} 46.
Ke2 {[%clk 00:46:18]} {[%emt 00:01:11]} Rxa3 {[%clk 00:12:42]} {[%emt
00:09:43]} 47. Rb5 {[%clk 00:46:40]} {[%emt 00:00:15]} Kd6 {[%clk 00:12:12]}
{[%emt 00:00:53]} 48. Rxg5 {[%clk 00:45:50]} {[%emt 00:01:21]} Rb3 {[%clk
00:12:23]} {[%emt 00:00:19]} 49. Kf2 {[%clk 00:32:22]} {[%emt 00:13:57]} Ke6
{[%clk 00:11:15]} {[%emt 00:01:39]} 50. Rf5 {[%clk 00:31:48]} {[%emt 00:01:03]}
b6 {[%clk 00:08:47]} {[%emt 00:02:59]} 51. axb6 {[%clk 00:31:55]} {[%emt
00:00:22]} Rxb6 {[%clk 00:09:13]} {[%emt 00:00:05]} 52. Kg3 {[%clk 00:31:52]}
{[%emt 00:00:32]} Rb8 {[%clk 00:07:19]} {[%emt 00:02:24]} 53. Kf4 {[%clk
00:31:25]} {[%emt 00:00:57]} Ra8 {[%clk 00:06:52]} {[%emt 00:00:58]} 54. Kg3
{[%clk 00:29:39]} {[%emt 00:02:15]} Rg8 {[%clk 00:06:57]} {[%emt 00:00:26]} 55.
Rf4 {[%clk 00:28:16]} {[%emt 00:01:53]} Ke5 {[%clk 00:07:18]} {[%emt 00:00:09]}
56. Kf3 {[%clk 00:28:22]} {[%emt 00:00:23]} Ke6 {[%clk 00:07:01]} {[%emt
00:00:47]} 57. Kg3 {[%clk 00:24:21]} {[%emt 00:04:32]} Ke5 {[%clk 00:07:26]}
{[%emt 00:00:05]} 58. Rf1 {[%clk 00:24:17]} {[%emt 00:00:34]} Ke6 {[%clk
00:07:30]} {[%emt 00:00:26]} 59. Rf2 {[%clk 00:24:30]} {[%emt 00:00:17]} Ke5
{[%clk 00:05:26]} {[%emt 00:02:34]} 60. Rf4 {[%clk 00:24:31]} {[%emt 00:00:29]}
Ke6 {[%clk 00:05:39]} {[%emt 00:00:18]} 61. Kh4 {[%clk 00:22:22]} {[%emt
00:02:38]} Ke5 {[%clk 00:06:01]} {[%emt 00:00:09]} 62. Rf7 {[%clk 00:22:02]}
{[%emt 00:00:49]} Ke6 {[%clk 00:04:21]} {[%emt 00:02:10]} 63. Rf5 {[%clk
00:18:37]} {[%emt 00:03:55]} Rh8+ {[%clk 00:04:31]} {[%emt 00:00:20]} 64. Rh5
{[%clk 00:18:33]} {[%emt 00:00:34]} Rg8 {[%clk 00:04:47]} {[%emt 00:00:14]} 65.
Rf5 {[%emt 00:04:32]} Ke5 {[%emt 00:00:14]} 1/2-1/2

[Event "7° Rencontres Internationales des Echecs Francophones"]
[Site "PARIS, France"]
[Date "2019.08.10"]
[Round "7.6"]
[White "Rakotomaharo, Fy Antenaina"]
[Black "Dudognon, Thibault"]
[Result "1-0"]
[TimeControl "90'+ 30' + 30seconds/move"]
[WhiteTitle "IM"]
[BlackTitle "FM"]
[WhiteFideId "13100050"]
[BlackFideId "20675569"]
[WhiteElo "2438"]
[BlackElo "2272"]

1. d4 {[%clk 01:30:59]} d5 {[%clk 01:30:51]} {[%emt 00:00:11]} 2. c4 {[%clk
01:31:22]} {[%emt 00:00:07]} c6 {[%clk 01:31:16]} {[%emt 00:00:03]} 3. Nc3
{[%clk 01:31:41]} {[%emt 00:00:11]} Nf6 {[%clk 01:31:41]} {[%emt 00:00:04]} 4.
Nf3 {[%clk 01:31:54]} {[%emt 00:00:16]} dxc4 {[%clk 01:32:06]} {[%emt
00:00:06]} 5. a4 {[%clk 01:31:46]} {[%emt 00:00:38]} Bf5 {[%clk 01:32:30]}
{[%emt 00:00:04]} 6. e3 {[%clk 01:31:56]} {[%emt 00:00:21]} e6 {[%clk
01:32:47]} {[%emt 00:00:13]} 7. Bxc4 {[%clk 01:32:20]} {[%emt 00:00:05]} Bb4
{[%clk 01:33:14]} {[%emt 00:00:04]} 8. O-O {[%clk 01:32:40]} {[%emt 00:00:12]}
Nbd7 {[%clk 01:33:22]} {[%emt 00:00:21]} 9. Qe2 {[%clk 01:27:20]} {[%emt
00:05:49]} Bg6 {[%clk 01:33:47]} {[%emt 00:00:05]} 10. Rd1 {[%clk 01:27:46]}
{[%emt 00:00:04]} O-O {[%clk 01:33:27]} {[%emt 00:00:50]} 11. h3 {[%clk
01:27:11]} {[%emt 00:01:05]} Qe7 {[%clk 01:29:06]} {[%emt 00:04:51]} 12. Bd2
{[%clk 01:22:27]} {[%emt 00:05:14]} e5 {[%clk 01:26:17]} {[%emt 00:03:19]} 13.
Nh4 {[%clk 01:21:09]} {[%emt 00:01:48]} exd4 {[%clk 01:24:57]} {[%emt
00:01:50]} 14. Nxg6 {[%clk 01:21:05]} {[%emt 00:00:35]} hxg6 {[%clk 01:25:23]}
{[%emt 00:00:04]} 15. exd4 {[%clk 01:21:30]} {[%emt 00:00:05]} Qxe2 {[%clk
01:25:27]} {[%emt 00:00:25]} 16. Bxe2 {[%clk 01:21:55]} {[%emt 00:00:06]} a5
{[%clk 01:23:17]} {[%emt 00:02:39]} 17. Bc4 {[%clk 01:10:48]} {[%emt 00:11:37]}
Nb6 {[%clk 01:21:28]} {[%emt 00:02:18]} 18. Bb3 {[%clk 01:11:14]} {[%emt
00:00:05]} Rfe8 {[%clk 01:19:15]} {[%emt 00:02:43]} 19. g4 {[%clk 01:06:59]}
{[%emt 00:04:45]} Rad8 {[%clk 01:17:21]} {[%emt 00:02:24]} 20. g5 {[%clk
01:00:21]} {[%emt 00:07:08]} Nfd5 {[%clk 01:14:49]} {[%emt 00:03:01]} 21. Re1
{[%clk 01:00:03]} {[%emt 00:00:49]} Kf8 {[%clk 01:11:52]} {[%emt 00:03:27]} 22.
Rxe8+ {[%clk 00:56:30]} {[%emt 00:04:03]} Rxe8 {[%clk 01:11:59]} {[%emt
00:00:23]} 23. Kg2 {[%clk 00:56:11]} {[%emt 00:00:49]} f5 {[%clk 01:07:05]}
{[%emt 00:05:24]} 24. Rh1 {[%clk 00:52:15]} {[%emt 00:04:26]} Nc7 {[%clk
00:53:07]} {[%emt 00:14:27]} 25. Rd1 {[%clk 00:50:36]} {[%emt 00:02:09]} Ncd5
{[%clk 00:45:41]} {[%emt 00:07:57]} 26. h4 {[%clk 00:47:02]} {[%emt 00:04:04]}
Rd8 {[%clk 00:40:47]} {[%emt 00:05:25]} 27. Kf3 {[%clk 00:39:49]} {[%emt
00:07:42]} Ne7 {[%clk 00:38:22]} {[%emt 00:02:54]} 28. Bf4 {[%clk 00:37:38]}
{[%emt 00:02:42]} Nbd5 {[%clk 00:38:31]} {[%emt 00:00:22]} 29. Nxd5 {[%clk
00:37:30]} {[%emt 00:00:38]} Nxd5 {[%clk 00:36:25]} {[%emt 00:02:36]} 30. Be5
{[%clk 00:37:53]} {[%emt 00:00:07]} Bd6 {[%clk 00:33:56]} {[%emt 00:02:58]} 31.
Bxd5 {[%clk 00:36:58]} {[%emt 00:01:26]} Bxe5 {[%clk 00:31:58]} {[%emt
00:02:28]} 32. dxe5 {[%clk 00:37:23]} {[%emt 00:00:05]} cxd5 {[%clk 00:32:25]}
{[%emt 00:00:03]} 33. Ke3 {[%clk 00:31:27]} {[%emt 00:06:25]} Ke7 {[%clk
00:27:19]} {[%emt 00:05:38]} 34. Rc1 {[%clk 00:31:45]} {[%emt 00:00:12]} Rh8
{[%clk 00:25:34]} {[%emt 00:02:15]} 35. Rc7+ {[%clk 00:23:19]} {[%emt
00:08:57]} Ke6 {[%clk 00:25:57]} {[%emt 00:00:07]} 36. f4 {[%clk 00:23:46]}
{[%emt 00:00:02]} Rxh4 {[%clk 00:26:17]} {[%emt 00:00:10]} 37. Rxg7 {[%clk
00:24:09]} {[%emt 00:00:07]} d4+ {[%clk 00:26:28]} {[%emt 00:00:19]} 38. Kf3
{[%clk 00:24:19]} {[%emt 00:00:19]} Rh3+ {[%clk 00:26:26]} {[%emt 00:00:33]} 39.
Kg2 {[%clk 00:24:40]} {[%emt 00:00:09]} Rb3 {[%clk 00:26:45]} {[%emt 00:00:11]}
40. Rxg6+ {[%clk 00:22:29]} {[%emt 00:02:42]} Kd5 {[%clk 00:26:44]} {[%emt
00:00:31]} 41. Rd6+ {[%clk 00:22:51]} {[%emt 00:00:07]} Ke4 {[%clk 00:26:20]}
{[%emt 00:00:54]} 42. g6 {[%clk 00:23:12]} {[%emt 00:00:09]} Rxb2+ {[%clk
00:21:24]} {[%emt 00:05:25]} 43. Kg3 {[%clk 00:22:12]} {[%emt 00:01:30]} Rb1
{[%clk 00:24:59]} {[%emt 00:27:24]} 44. e6 {[%clk 00:50:55]} {[%emt 00:02:47]}
Rg1+ {[%clk 00:25:18]} {[%emt 00:00:12]} 45. Kf2 {[%clk 00:51:22]} {[%emt
00:00:03]} Rxg6 {[%clk 00:25:38]} {[%emt 00:00:09]} 46. e7 {[%clk 00:51:38]}
{[%emt 00:00:15]} Rxd6 {[%clk 00:26:06]} {[%emt 00:00:02]} 47. e8=Q+ {[%clk
00:51:57]} {[%emt 00:00:11]} Kxf4 {[%clk 00:26:28]} {[%emt 00:00:08]} 48. Qe7
{[%clk 00:33:39]} {[%emt 00:18:48]} Rd5 {[%clk 00:26:07]} {[%emt 00:00:51]} 49.
Qe6 {[%clk 00:27:42]} {[%emt 00:06:28]} Re5 {[%clk 00:25:18]} {[%emt 00:01:19]}
50. Qd7 {[%clk 00:26:48]} {[%emt 00:01:24]} Ke4 {[%clk 00:24:59]} {[%emt
00:00:49]} 51. Ke2 {[%clk 00:26:19]} {[%emt 00:01:00]} Rd5 {[%clk 00:21:13]}
{[%emt 00:04:15]} 52. Qe7+ {[%clk 00:26:30]} {[%emt 00:00:18]} Re5 {[%clk
00:21:35]} {[%emt 00:00:09]} 53. Qxb7+ {[%clk 00:26:35]} {[%emt 00:00:25]} Rd5
{[%clk 00:21:51]} {[%emt 00:00:14]} 54. Qe7+ {[%clk 00:25:23]} {[%emt
00:01:42]} Re5 {[%clk 00:21:52]} {[%emt 00:00:30]} 55. Qd8 {[%clk 00:17:31]}
{[%emt 00:08:22]} f4 {[%clk 00:17:18]} {[%emt 00:05:04]} 56. Kd2 {[%clk
00:14:05]} {[%emt 00:03:57]} Rd5 {[%clk 00:16:14]} {[%emt 00:01:33]} 57. Qe7+
{[%clk 00:12:37]} {[%emt 00:01:58]} Re5 {[%clk 00:16:18]} {[%emt 00:00:27]} 58.
Qa3 {[%clk 00:12:53]} {[%emt 00:00:13]} Rd5 {[%clk 00:15:14]} {[%emt 00:01:33]}
59. Qd3+ {[%clk 00:13:08]} {[%emt 00:00:16]} Ke5 {[%clk 00:15:40]} {[%emt
00:00:05]} 60. Qe2+ {[%clk 00:13:27]} {[%emt 00:00:10]} Kf5 {[%clk 00:12:36]}
{[%emt 00:03:34]} 61. Kd3 {[%clk 00:12:41]} {[%emt 00:01:17]} Re5 {[%clk
00:10:24]} {[%emt 00:02:42]} 62. Qg2 {[%clk 00:12:41]} {[%emt 00:00:29]} Kf6
{[%clk 00:09:08]} {[%emt 00:01:47]} 63. Kxd4 {[%clk 00:11:55]} {[%emt
00:01:16]} Rf5 {[%clk 00:08:10]} {[%emt 00:01:27]} 64. Qf3 {[%clk 00:12:06]}
{[%emt 00:00:19]} Kg5 {[%clk 00:08:00]} {[%emt 00:00:41]} 65. Ke4 {[%clk
00:12:26]} {[%emt 00:00:09]} Rf6 {[%clk 00:07:19]} {[%emt 00:01:11]} 66. Qg2+
{[%clk 00:12:31]} {[%emt 00:00:25]} Kh6 {[%clk 00:07:33]} {[%emt 00:00:16]} 67.
Kf3 {[%clk 00:10:28]} {[%emt 00:02:33]} Rf5 {[%clk 00:07:45]} {[%emt 00:00:19]}
68. Qg8 {[%clk 00:10:32]} {[%emt 00:00:25]} Rg5 {[%clk 00:05:55]} {[%emt
00:02:21]} 69. Qe6+ {[%clk 00:08:51]} {[%emt 00:02:11]} Rg6 {[%clk 00:03:38]}
{[%emt 00:02:47]} 70. Qh3+ {[%clk 00:08:55]} {[%emt 00:00:25]} Kg5 {[%clk
00:03:40]} {[%emt 00:00:28]} 71. Qg4+ {[%clk 00:09:03]} {[%emt 00:00:22]} Kf6
{[%clk 00:03:55]} {[%emt 00:00:16]} 72. Qxf4+ {[%clk 00:09:27]} {[%emt
00:00:06]} Ke6 {[%clk 00:04:21]} {[%emt 00:00:03]} 73. Qc4+ {[%clk 00:09:38]}
{[%emt 00:00:20]} Kd5 {[%emt 00:00:13]} 74. Ke4+ 1-0